[Event "TUR-ch Veterans 2020"]
[Site "Antalya-Belek"]
[Date "2020.01.22"]
[Round "5"]
[White "Pekun, Cem"]
[Black "Atas, Remzi"]
[Result "1-0"]
[ECO "E81"]
[WhiteElo "2061"]
[BlackElo "1498"]
[Annotator "NA"]
[PlyCount "83"]
[EventDate "2020.01.19"]
[EventCountry "TUR"]
[SourceTitle "playchess.com"]
[Source "ChessBase"]
[SourceQuality "1"]
[TimeControl "5400+30"]

1. d4 {[%emt 0:00:30]} Nf6 {[%emt 0:00:30]} 2. c4 {[%emt 0:00:30]} g6 {[%emt 0:00:30]} 3. Nc3 {[%emt 0:00:00]} Bg7 {[%emt 0:00:30]} 4. e4 {[%emt 0:00:00]} d6 {[%emt 0:00:30]} 5. f3 {[%emt 0:00:30]} O-O {[%emt 0:00:30]} 6. Be3 {[%emt 0:00:30]} c6 {[%emt 0:01:30]} 7. Bd3 {[%emt 0:02:30]} e5 {[%emt 0:00:30] E81: King's Indian: Sämisch: 6th move deviations (including 6 Be3 c6)} (7... a6 8. c5 Nbd7 9. cxd6 exd6 10. Nge2 Re8 11. O-O b5 12. Qd2 Bb7 13. Bh6 Bh8 14. Rae1 c5 15. d5 Ne5 {0-1 (41) Lenic,L (2656)-Shimanov,A (2626) chess.com INT 2018}) 8. dxe5 {[%emt 0:01:30]} dxe5 {[%emt 0:00:30]} 9. Nge2 {[%emt 0:00:30]} Be6 {[%emt 0:06:30]} 10. O-O {[%emt 0:00:30]} Na6 {[%emt 0:00:30]} 11. a3 {[%emt 0:02:30]} Qe7 {[%emt 0:02:30]} 12. b4 {[%emt 0:00:30]} Rfd8 {[%emt 0:00:30]} 13. Qc2 $1 {[%emt 0:00:30]} Rd7 $146 {[%emt 0:01:30]} ({Predecessor:} 13... b6 14. Rfd1 Nc7 15. Rac1 {1-0 (45) Neese,H (2131)-Grigat,K (1956) Niedrhausen 2016}) 14. Rfd1 {[%emt 0:04:30]} Nh5 {[%emt 0:03:30]} 15. g3 {[%emt 0:03:30]} Nc7 {[%emt 0:07:30]} 16. Nc1 {[%emt 0:05:30]} b6 {[%emt 0:03:30]} 17. c5 {[%emt 0:02:30]} b5 {[%emt 0:00:30]} 18. Nb3 {[%emt 0:00:30]} Bxb3 {[%emt 0:02:30]} 19. Qxb3 {[%emt 0:00:30]} Rad8 {[%emt 0:00:30]} 20. Bf1 {[%emt 0:06:30]} Ne6 {[%emt 0:02:30]} 21. Rxd7 {[%emt 0:04:30]} Rxd7 {[%emt 0:00:30]} 22. Qa2 {[%emt 0:05:30]} Nd4 {[%emt 0:00:30]} 23. Kf2 $15 {[%emt 0:02:30]} (23. a4 $11 bxa4 24. Kg2) 23... g5 {[%emt 0:07:30]} 24. a4 {[%emt 0:03:30]} g4 {[%emt 0:00:30]} 25. axb5 {[%emt 0:10:30]} Qf6 {[%emt 0:04:30]} 26. Be2 {[%emt 0:03:30]} gxf3 {[%emt 0:08:30]} 27. Bf1 {[%emt 0:04:30]} cxb5 {[%emt 0:02:30]} 28. Nd5 {[%emt 0:00:30]} Qc6 {[%emt 0:04:30]} 29. Bh3 {[%emt 0:02:30]} Ne6 {[%emt 0:00:30]} 30. Qa6 {[%emt 0:01:30]} Qxa6 {[%emt 0:01:30]} 31. Rxa6 {[%emt 0:00:00]} Nf6 {[%emt 0:03:30]} 32. c6 {[%emt 0:08:00]} Nxe4+ {[%emt 0:07:30]} 33. Kxf3 {[%emt 0:03:30]} N4g5+ {[%emt 0:05:30]} 34. Bxg5 {[%emt 0:01:30]} Rxd5 {[%emt 0:03:48]} 35. Bxe6 {[%emt 0:01:30]} fxe6 {[%emt 0:00:39]} 36. c7 {[%emt 0:03:13]} Rd3+ {[%emt 0:01:15]} 37. Ke2 {[%emt 0:00:26]} Rc3 {[%emt 0:00:39]} 38. Rxa7 {[%emt 0:00:46]} Bf8 {[%emt 0:02:18]} 39. Be3 {[%emt 0:00:42]} Rc6 {[%emt 0:00:51]} 40. Rb7 {[%emt 0:01:08]} Kh8 {[%emt 0:03:17]} 41. Bc5 {[%emt 0:01:04]} Bxc5 {[%emt 0:02:15]} 42. bxc5 {[%emt 0:00:30]} 1-0

[Event "TUR-ch Veterans 2020"]
[Site "Antalya-Belek"]
[Date "2020.01.22"]
[Round "5"]
[White "Cetinkaya, Vedat Ali"]
[Black "Buker, Muhittin"]
[Result "1-0"]
[ECO "D46"]
[WhiteElo "2026"]
[BlackElo "2008"]
[Annotator "NA"]
[PlyCount "105"]
[EventDate "2020.01.19"]
[EventCountry "TUR"]
[SourceTitle "playchess.com"]
[Source "ChessBase"]
[SourceQuality "1"]
[TimeControl "5400+30"]

1. d4 {[%emt 0:00:30]} d5 {[%emt 0:00:30]} 2. Nf3 {[%emt 0:00:30]} Nf6 {[%emt 0:00:00]} 3. c4 {[%emt 0:00:30]} e6 {[%emt 0:00:00]} 4. e3 {[%emt 0:02:30]} c6 {[%emt 0:01:30]} 5. Bd3 {[%emt 0:00:30]} Bd6 {[%emt 0:00:30]} 6. O-O {[%emt 0:00:30]} Nbd7 {[%emt 0:00:30]} 7. Nc3 {[%emt 0:02:30]} dxc4 {[%emt 0:00:30]} 8. Bxc4 {[%emt 0:00:30]} b5 {[%emt 0:00:00]} 9. Bd3 {[%emt 0:01:30]} a6 {[%emt 0:01:00]} 10. e4 {[%emt 0:01:30]} e5 {[%emt 0:00:00]} 11. Ne2 {[%emt 0:12:30]} O-O {[%emt 0:03:00]} 12. Qc2 {[%emt 0:01:30]} c5 {[%emt 0:05:30]} 13. dxe5 {[%emt 0:11:30]} Nxe5 {[%emt 0:00:30]} 14. Nxe5 {[%emt 0:01:30]} Bxe5 {[%emt 0:00:00]} 15. Rd1 {[%emt 0:00:00]} Bxh2+ $2 {[%emt 0:12:00]} ({Black should play} 15... Ng4 $17 16. h3 {[#]} Nxf2 $1 {[%mdl 512]} 17. Kxf2 c4 18. Bxc4 Qf6+ 19. Kg1 bxc4) 16. Kxh2 {[%emt 0:01:00]} c4 {[%emt 0:04:30]} 17. Bxc4 {[%emt 0:02:30]} Ng4+ {[%emt 0:01:30]} 18. Kg3 {[%emt 0:09:30]} Qb6 $14 {[%emt 0:07:30]} 19. Nd4 {[%emt 0:01:30]} bxc4 {[%emt 0:01:30]} 20. f3 {[%emt 0:03:30]} Ne5 {[%emt 0:02:30]} 21. Be3 {[%emt 0:00:30]} a5 {[%emt 0:09:30]} 22. Kf2 {[%emt 0:03:30]} Nd3+ {[%emt 0:02:30]} 23. Kg1 {[%emt 0:00:30]} Qf6 {[%emt 0:02:30]} 24. b3 {[%emt 0:02:30]} Nb4 {[%emt 0:06:30]} 25. Qxc4 {[%emt 0:02:30]} Ba6 {[%emt 0:06:30]} 26. Qc5 {[%emt 0:01:30]} Bb7 {[%emt 0:11:30]} 27. Nf5 {[%emt 0:02:30]} Nc6 {[%emt 0:01:51]} 28. Rac1 {[%emt 0:05:30]} Rad8 {[%emt 0:00:44]} 29. Nd6 {[%emt 0:03:30]} Qe7 {[%emt 0:04:46]} 30. Rd2 {[%emt 0:08:50]} Ba8 {[%emt 0:00:36]} 31. Rcd1 {[%emt 0:00:17]} h6 {[%emt 0:01:32]} 32. Qh5 {[%emt 0:00:27]} Qf6 {[%emt 0:01:39]} 33. Bc5 {[%emt 0:06:46]} Rd7 {[%emt 0:04:56]} 34. Ne8 {[%emt 0:02:22]} Rxe8 {[%emt 0:01:21]} 35. Rxd7 {[%emt 0:00:03]} Re5 {[%emt 0:00:00]} 36. Qg4 {[%emt 0:02:33]} Rxc5 {[%emt 0:00:04]} 37. Rc7 {[%emt 0:00:27]} Kh7 {[%emt 0:02:17]} 38. f4 {[%emt 0:03:04]} h5 {[%emt 0:02:24]} 39. e5 {[%emt 0:01:45]} hxg4 {[%emt 0:01:01]} 40. exf6 {[%emt 0:00:06]} gxf6 {[%emt 0:00:10]} 41. Kh2 {[%emt 0:01:28]} Kg6 {[%emt 0:00:09]} 42. Rdd7 {[%emt 0:00:24]} Rh5+ {[%emt 0:01:20]} 43. Kg3 {[%emt 0:00:21]} Rh8 {[%emt 0:00:47]} 44. Kxg4 {[%emt 0:00:24]} Rf8 {[%emt 0:00:42]} 45. a3 {[%emt 0:00:43]} f5+ {[%emt 0:00:21]} 46. Kg3 {[%emt 0:00:46]} Nd8 {[%emt 0:00:06]} 47. Rc8 {[%emt 0:00:01]} Be4 {[%emt 0:04:05]} 48. Rdxd8 {[%emt 0:00:20]} Rxd8 {[%emt 0:00:07]} 49. Rxd8 {[%emt 0:00:10]} Kf6 {[%emt 0:00:06]} 50. Rd6+ {[%emt 0:00:24]} Ke7 {[%emt 0:00:09]} 51. Ra6 {[%emt 0:00:49]} Bc2 {[%emt 0:00:03]} 52. Rxa5 {[%emt 0:00:00]} Bxb3 {[%emt 0:01:03]} 53. Rxf5 {[%emt 0:00:00]} 1-0

[Event "TUR-ch Veterans 2020"]
[Site "Antalya-Belek"]
[Date "2020.01.22"]
[Round "5"]
[White "Yuksel, Mustafa"]
[Black "Odabasi, Nail"]
[Result "1-0"]
[ECO "D06"]
[WhiteElo "2004"]
[BlackElo "1458"]
[Annotator "NA"]
[PlyCount "75"]
[EventDate "2020.01.19"]
[EventCountry "TUR"]
[SourceTitle "playchess.com"]
[Source "ChessBase"]
[SourceQuality "1"]
[TimeControl "5400+30"]

{[%evp 19,49,39,94,70,134,80,89,78,118,110,129,32767,120,74,134,126,131,135,144,139,137,152,143,145,167,180,167,179,185,158,184,183]} 1. d4 {[%emt 0:00:30]} d5 {[%emt 0:00:30]} 2. Nf3 {[%emt 0:00:30]} Bf5 {[%emt 0:00:30]} 3. c4 {[%emt 0:00:30]} e6 {[%emt 0:01:30]} 4. Nc3 {[%emt 0:00:00]} Nf6 {[%emt 0:02:30]} 5. Qb3 {[%emt 0:03:00]} dxc4 {[%emt 0:03:30]} (5... Nc6 6. cxd5 exd5 7. Bg5 Na5 8. Qa4+ c6 9. Bxf6 gxf6 10. e3 Qb6 11. O-O-O O-O-O 12. Bd3 Bg6 13. Qc2 Nc4 {½-½ (28) Wojtaszek,R (2744)-Grischuk,A (2810) Beijing 2014}) 6. Qxb7 {[%emt 0:08:30] D06: Queen's Gambit: Symmetrical and Baltic Defences} Nbd7 {[%emt 0:00:30]} 7. Qc6 {[%emt 0:00:30]} Bb4 {[%emt 0:01:30]} 8. Qxc4 {[%emt 0:00:00]} Bxc3+ {[%emt 0:00:30]} 9. bxc3 {[%emt 0:00:00]} O-O {[%emt 0:00:30]} 10. e3 $146 {[%emt 0:01:30]} ({Predecessor:} 10. Ba3 Re8 11. e3 Nb6 12. Qa6 c6 13. Ne5 {1-0 (43) Ruettinger,M (1904)-Thoma,D (1303) Fuerth 2001}) 10... Nb6 {[%emt 0:01:30]} (10... c5 $14) 11. Qa6 {[%emt 0:01:30]} Nbd5 {[%emt 0:01:30]} 12. Bd3 {[%emt 0:01:30]} ({White should try} 12. Ba3) 12... Nxc3 {[%emt 0:00:30]} 13. O-O {[%emt 0:00:30]} Bxd3 {[%emt 0:03:30]} (13... Qd6 $14) 14. Qxd3 {[%emt 0:00:30]} Nce4 {[%emt 0:00:30]} 15. Ba3 {[%emt 0:03:30]} Re8 {[%emt 0:01:30]} 16. Rfc1 {[%emt 0:00:30]} a6 {[%emt 0:09:30]} (16... e5 $142) 17. Ne5 {[%emt 0:03:30]} Nd6 {[%emt 0:01:30]} 18. Bb4 {[%emt 0:05:30]} Nd5 {[%emt 0:05:30]} 19. Be1 {[%emt 0:01:30]} f5 {[%emt 0:03:30]} 20. f3 {[%emt 0:00:30]} Qg5 {[%emt 0:03:30]} 21. Bd2 {[%emt 0:00:30]} Qe7 {[%emt 0:02:30]} 22. e4 {[%emt 0:02:30]} fxe4 {[%emt 0:00:30]} 23. fxe4 {[%emt 0:00:30]} Nb6 {[%emt 0:03:30]} 24. Nf3 {[%emt 0:00:30]} h6 {[%emt 0:01:30]} 25. Rc6 $18 {[%emt 0:00:30]} Red8 {[%emt 0:02:30]} 26. Rac1 {[%emt 0:01:30]} Nb5 {[%emt 0:01:30]} 27. Be3 {[%emt 0:00:30]} Rd6 {[%emt 0:03:30]} 28. R6c2 {[%emt 0:06:30]} Rad8 {[%emt 0:00:30]} 29. Qb3 {[%emt 0:00:30]} R6d7 {[%emt 0:08:30]} 30. a4 {[%emt 0:00:30]} Na3 {[%emt 0:04:30]} 31. Rc5 {[%emt 0:03:30]} Nac4 {[%emt 0:01:30]} 32. R1xc4 {[%emt 0:02:30]} Nxc4 {[%emt 0:00:00]} 33. Qxc4 {[%emt 0:00:30]} Rb8 {[%emt 0:02:00]} 34. h3 {[%emt 0:01:30]} Rb1+ {[%emt 0:03:30]} 35. Kh2 {[%emt 0:01:30]} Qd6+ {[%emt 0:01:30]} 36. Ne5 {[%emt 0:00:30]} Rb6 {[%emt 0:04:30]} 37. a5 {[%emt 0:00:30]} Rb5 {[%emt 0:00:30]} 38. Rc6 {[%emt 0:00:30]} 1-0

[Event "TUR-ch Veterans 2020"]
[Site "Antalya-Belek"]
[Date "2020.01.22"]
[Round "5"]
[White "Cicek, Cemil"]
[Black "Kocak, Sabri"]
[Result "0-1"]
[ECO "E90"]
[WhiteElo "1940"]
[BlackElo "2086"]
[Annotator "NA"]
[PlyCount "146"]
[EventDate "2020.01.19"]
[EventCountry "TUR"]
[SourceTitle "playchess.com"]
[Source "ChessBase"]
[SourceQuality "1"]
[TimeControl "5400+30"]

1. d4 {[%emt 0:00:30]} Nf6 {[%emt 0:00:30]} 2. c4 {[%emt 0:00:30]} g6 {[%emt 0:00:30]} 3. Nf3 {[%emt 0:00:00]} Bg7 {[%emt 0:00:30]} 4. Nc3 {[%emt 0:00:00]} O-O {[%emt 0:00:30]} 5. e4 {[%emt 0:00:30]} d6 {[%emt 0:00:30]} 6. Bd3 {[%emt 0:00:00]} e5 {[%emt 0:01:30]} 7. d5 {[%emt 0:00:00]} a5 {[%emt 0:01:30]} 8. O-O {[%emt 0:00:30]} Na6 {[%emt 0:00:30] E90: King's Indian: Classical: Early deviations and 6 h3} 9. h3 {[%emt 0:00:30]} Nc5 {[%emt 0:00:30]} (9... Nh5 10. a3 Bd7 11. Bc2 Nf4 12. Ne2 Nxe2+ 13. Qxe2 a4 14. Be3 b6 15. Nd2 Nc5 16. Nb1 f5 17. exf5 gxf5 {1-0 (39) Xu,X (2567)-Miroshnichenko,E (2597) chess.com INT 2019}) 10. Bc2 {[%emt 0:01:30]} Bd7 {[%emt 0:01:30]} 11. Be3 {[%emt 0:00:30]} b6 {[%emt 0:00:30]} 12. a3 {[%emt 0:01:30]} a4 {[%emt 0:08:30]} 13. Re1 {[%emt 0:01:30]} Qe8 {[%emt 0:02:30]} 14. Qd2 $146 {[%emt 0:00:30]} ({Predecessor:} 14. Nd2 Nh5 15. Bg5 f5 16. exf5 gxf5 {0-1 (50) Sawczuk,C (2061)-Dors,J (2135) Poland 1999}) 14... Rb8 {[%emt 0:11:30]} 15. Bh6 {[%emt 0:00:30]} (15. Rad1 $142) 15... b5 {[%emt 0:02:30] [#]} 16. Bxg7 {[%emt 0:01:30]} (16. Be3 $1 $16) 16... Kxg7 {[%emt 0:00:30]} 17. cxb5 {[%emt 0:00:30]} Bxb5 {[%emt 0:00:00]} 18. Rab1 {[%emt 0:00:00]} Bd7 {[%emt 0:01:00]} 19. Qg5 {[%emt 0:02:00]} h6 {[%emt 0:00:30]} 20. Qe3 {[%emt 0:00:30]} Nh5 {[%emt 0:01:30]} 21. Kh2 {[%emt 0:02:30]} f5 {[%emt 0:06:30]} 22. exf5 {[%emt 0:00:30]} gxf5 {[%emt 0:00:30]} 23. Qd2 {[%emt 0:01:30]} Qd8 {[%emt 0:02:30]} 24. g3 {[%emt 0:02:30]} f4 {[%emt 0:03:30]} 25. g4 {[%emt 0:00:30]} Nf6 {[%emt 0:01:30]} 26. Qe2 {[%emt 0:03:30]} Kh8 {[%emt 0:03:30]} 27. Nd2 $2 {[%emt 0:01:30] [#]} (27. Rg1 $17) 27... Nxg4+ $1 {[%emt 0:02:30]} 28. Kg2 $19 {[%emt 0:05:30]} Nf6 {[%emt 0:08:30]} 29. Qf3 {[%emt 0:00:30]} Qe8 {[%emt 0:01:30]} 30. Kh2 {[%emt 0:00:30]} Qh5 {[%emt 0:00:30]} 31. Qxh5 {[%emt 0:00:30]} Nxh5 {[%emt 0:00:00]} 32. Nde4 {[%emt 0:01:30]} Nxe4 {[%emt 0:00:00]} 33. Bxe4 {[%emt 0:00:30]} Nf6 {[%emt 0:03:30]} 34. Bc2 {[%emt 0:00:30]} Ra8 {[%emt 0:01:30]} 35. Rg1 {[%emt 0:01:30]} Rg8 {[%emt 0:03:30]} 36. Rxg8+ {[%emt 0:01:30]} Kxg8 {[%emt 0:02:30]} 37. Rg1+ {[%emt 0:00:30]} Kf7 {[%emt 0:00:30]} 38. Bg6+ {[%emt 0:00:30]} Kf8 {[%emt 0:00:30]} 39. Bc2 {[%emt 0:00:30]} Rb8 {[%emt 0:01:30]} 40. Rb1 {[%emt 0:00:30]} Ra8 {[%emt 0:01:30]} 41. f3 {[%emt 0:01:30]} Ra5 {[%emt 0:04:30]} 42. Rd1 {[%emt 0:01:30]} Ke7 {[%emt 0:01:30]} 43. Be4 {[%emt 0:02:30]} Rc5 {[%emt 0:00:30]} 44. Rg1 {[%emt 0:00:30]} Kf7 {[%emt 0:00:30]} 45. Bg6+ {[%emt 0:00:30]} Kf8 {[%emt 0:00:00]} 46. Be4 {[%emt 0:00:30]} Be8 {[%emt 0:01:00]} 47. Kg2 {[%emt 0:01:30]} Rc4 {[%emt 0:01:30]} 48. Kf2 {[%emt 0:02:30]} Rd4 {[%emt 0:01:30]} 49. Rd1 {[%emt 0:02:30]} Nxe4+ {[%emt 0:01:36]} 50. fxe4 {[%emt 0:01:30]} Rxd1 {[%emt 0:00:02]} 51. Nxd1 {[%emt 0:00:30]} c6 {[%emt 0:00:43]} 52. Nc3 {[%emt 0:00:30]} cxd5 {[%emt 0:00:05]} 53. Nxd5 {[%emt 0:01:30]} Bc6 {[%emt 0:00:28]} 54. Nc3 {[%emt 0:00:30]} Ke7 {[%emt 0:00:35]} 55. Kf3 {[%emt 0:01:30]} h5 {[%emt 0:00:47]} 56. h4 {[%emt 0:00:30]} Ke6 {[%emt 0:00:16]} 57. Kf2 {[%emt 0:00:00]} Kd7 {[%emt 0:01:23]} 58. Ke2 {[%emt 0:02:00]} Kc7 {[%emt 0:00:19]} 59. Kd3 {[%emt 0:00:30]} Kb6 {[%emt 0:00:30]} 60. Kc4 {[%emt 0:00:30]} Ka5 {[%emt 0:02:48]} 61. Kd3 {[%emt 0:01:30]} Bb5+ {[%emt 0:00:28]} 62. Kd2 {[%emt 0:01:30]} Bc4 {[%emt 0:00:25]} 63. Ke1 {[%emt 0:01:30]} Bb3 {[%emt 0:00:34]} 64. Kd2 {[%emt 0:00:30]} Kb6 {[%emt 0:00:07]} 65. Kd3 {[%emt 0:02:30]} Kc5 {[%emt 0:00:09]} 66. Ke2 {[%emt 0:01:30]} Kd4 {[%emt 0:01:55]} 67. Kf3 {[%emt 0:02:30]} Kd3 {[%emt 0:00:42]} 68. Nb5 {[%emt 0:01:30]} d5 {[%emt 0:01:20]} 69. exd5 {[%emt 0:00:30]} Bxd5+ {[%emt 0:00:02]} 70. Kf2 {[%emt 0:00:30]} e4 {[%emt 0:00:37]} 71. Nc3 {[%emt 0:00:00]} e3+ {[%emt 0:00:14]} 72. Ke1 {[%emt 0:00:00]} Bc6 {[%emt 0:01:04]} 73. Ne2 {[%emt 0:00:30]} f3 {[%emt 0:00:43]} 0-1

[Event "TUR-ch Veterans 2020"]
[Site "Antalya-Belek"]
[Date "2020.01.22"]
[Round "5"]
[White "Tasan, Mehmet Askin"]
[Black "Karadag, Eflatun Cem"]
[Result "1/2-1/2"]
[ECO "C41"]
[WhiteElo "1877"]
[BlackElo "1801"]
[Annotator "NA"]
[PlyCount "223"]
[EventDate "2020.01.19"]
[EventCountry "TUR"]
[SourceTitle "playchess.com"]
[Source "ChessBase"]
[SourceQuality "1"]
[TimeControl "5400+30"]

1. e4 {[%emt 0:00:30]} e5 {[%emt 0:03:30]} 2. Nf3 {[%emt 0:00:00]} d6 {[%emt 0:00:30]} 3. Bc4 {[%emt 0:02:00]} c6 {[%emt 0:03:30]} 4. d4 {[%emt 0:01:30]} Nd7 {[%emt 0:02:30]} 5. O-O {[%emt 0:00:30]} Be7 {[%emt 0:01:30]} 6. c3 {[%emt 0:01:30]} Ngf6 {[%emt 0:01:30]} 7. Qe2 {[%emt 0:07:30]} O-O {[%emt 0:02:30]} 8. a4 {[%emt 0:01:30]} a5 {[%emt 0:03:30]} 9. Bg5 {[%emt 0:02:30]} h6 {[%emt 0:01:30]} 10. Bh4 {[%emt 0:01:30]} Nh5 {[%emt 0:05:30]} 11. Bg3 {[%emt 0:03:30]} Nxg3 {[%emt 0:00:30]} 12. hxg3 {[%emt 0:00:30]} Bf6 {[%emt 0:00:30]} 13. Na3 {[%emt 0:03:30]} exd4 {[%emt 0:06:30]} 14. cxd4 {[%emt 0:05:30]} Re8 {[%emt 0:00:30]} 15. Qc2 {[%emt 0:01:30]} Qb6 {[%emt 0:02:30]} (15... Nb6 $15) 16. Rad1 {[%emt 0:01:30]} Qb4 {[%emt 0:04:30]} 17. Rfe1 $11 {[%emt 0:04:30]} Nb6 {[%emt 0:01:30]} 18. e5 {[%emt 0:06:30]} dxe5 {[%emt 0:06:30]} 19. dxe5 {[%emt 0:00:30]} Be7 {[%emt 0:02:30]} 20. Rd4 {[%emt 0:01:30]} Nxc4 {[%emt 0:01:30]} 21. Rxc4 {[%emt 0:01:30]} Qb6 {[%emt 0:00:30]} 22. Re3 {[%emt 0:03:30]} Be6 {[%emt 0:01:30]} 23. Rcc3 {[%emt 0:03:30]} Bb4 {[%emt 0:01:30]} 24. Nc4 {[%emt 0:02:30]} Qc7 {[%emt 0:02:30]} 25. Rb3 {[%emt 0:09:30]} b5 {[%emt 0:05:30]} 26. Rxb4 {[%emt 0:00:30]} axb4 {[%emt 0:06:30]} 27. Nd6 {[%emt 0:00:30]} b3 {[%emt 0:00:30]} 28. Qc5 {[%emt 0:02:30]} Reb8 {[%emt 0:06:30]} 29. axb5 {[%emt 0:01:30]} Ra1+ {[%emt 0:07:42]} 30. Kh2 {[%emt 0:00:00]} Qb6 {[%emt 0:01:33]} 31. Qxc6 {[%emt 0:02:00]} Qxc6 {[%emt 0:01:50]} 32. bxc6 {[%emt 0:00:30]} Rc1 {[%emt 0:00:21]} 33. Nd4 {[%emt 0:01:30]} Bd5 {[%emt 0:00:51]} 34. N6f5 {[%emt 0:10:04]} Kf8 {[%emt 0:00:47]} 35. e6 {[%emt 0:08:25]} fxe6 {[%emt 0:01:30]} 36. Nxe6+ {[%emt 0:00:27]} Bxe6 {[%emt 0:02:07]} 37. Rxe6 {[%emt 0:00:02]} Rc2 {[%emt 0:01:01]} 38. Nd4 {[%emt 0:01:58]} Rxb2 {[%emt 0:04:01]} 39. c7 {[%emt 0:00:37]} Rc8 {[%emt 0:00:39]} 40. Rb6 {[%emt 0:00:02]} Ke8 {[%emt 0:02:11]} 41. Rxb3 {[%emt 0:00:59]} Rxb3 {[%emt 0:02:28]} 42. Nxb3 {[%emt 0:00:37]} Rxc7 {[%emt 0:00:01]} 43. Nd4 {[%emt 0:00:06]} Ke7 {[%emt 0:00:22]} 44. g4 {[%emt 0:01:08]} Kf6 {[%emt 0:00:30]} 45. Kg3 {[%emt 0:00:19]} Rc3+ {[%emt 0:00:32]} 46. f3 {[%emt 0:00:53]} g6 {[%emt 0:00:36]} 47. Ne2 {[%emt 0:01:01]} Rc2 {[%emt 0:00:25]} 48. Nf4 {[%emt 0:00:43]} Rd2 {[%emt 0:00:37]} 49. Nh3 {[%emt 0:00:39]} Ke5 {[%emt 0:01:07]} 50. Nf2 {[%emt 0:01:18]} Ra2 {[%emt 0:00:27]} 51. Nd3+ {[%emt 0:00:43]} Kd4 {[%emt 0:00:47]} 52. Nf2 {[%emt 0:04:39]} Ke3 {[%emt 0:00:42]} 53. Nh3 {[%emt 0:00:34]} g5 {[%emt 0:01:15]} 54. f4 {[%emt 0:01:14]} gxf4+ {[%emt 0:00:38]} 55. Nxf4 {[%emt 0:00:08]} Ke4 {[%emt 0:00:12]} 56. Nh3 {[%emt 0:00:50]} Ke5 {[%emt 0:00:38]} 57. g5 {[%emt 0:01:47]} h5 {[%emt 0:02:19]} 58. g6 {[%emt 0:01:10]} Kf6 {[%emt 0:00:38]} 59. Nf4 {[%emt 0:00:38]} Kg5 {[%emt 0:00:29]} 60. g7 {[%emt 0:00:24]} Ra3+ {[%emt 0:00:15]} 61. Kh2 {[%emt 0:00:23]} Ra8 {[%emt 0:00:09]} 62. g3 {[%emt 0:00:35]} Kg4 {[%emt 0:00:19]} 63. Ne6 {[%emt 0:00:09]} Rg8 {[%emt 0:00:17]} 64. Kg2 {[%emt 0:00:24]} Kf5 {[%emt 0:00:27]} 65. Nf4 {[%emt 0:00:25]} Kg4 {[%emt 0:01:15]} 66. Ne6 {[%emt 0:00:26]} Kf5 {[%emt 0:00:22]} 67. Nf4 {[%emt 0:00:25]} h4 {[%emt 0:00:09]} 68. Kf3 {[%emt 0:01:15]} hxg3 {[%emt 0:00:19]} 69. Kxg3 {[%emt 0:00:18]} Rxg7+ {[%emt 0:00:06]} 70. Kf3 {[%emt 0:00:00]} Ra7 {[%emt 0:00:50]} 71. Nd3 {[%emt 0:00:03]} Ra3 {[%emt 0:00:14]} 72. Ke3 {[%emt 0:00:03]} Ke6 {[%emt 0:00:05]} 73. Kd4 {[%emt 0:00:30]} Ra4+ {[%emt 0:00:17]} 74. Ke3 {[%emt 0:00:03]} Kd5 {[%emt 0:00:30]} 75. Nf4+ {[%emt 0:00:00]} Ke5 {[%emt 0:00:00]} 76. Nd3+ {[%emt 0:00:24]} Kf5 {[%emt 0:00:00]} 77. Nc5 {[%emt 0:00:06]} Rc4 {[%emt 0:01:07]} 78. Nd3 {[%emt 0:00:02]} Re4+ {[%emt 0:00:17]} 79. Kd2 {[%emt 0:00:30]} Re8 {[%emt 0:00:00]} 80. Kc3 {[%emt 0:00:16]} Ke4 {[%emt 0:00:00]} 81. Nc5+ {[%emt 0:00:18]} Kd5 {[%emt 0:00:00]} 82. Nd3 {[%emt 0:00:28]} Rc8+ {[%emt 0:00:00]} 83. Kd2 {[%emt 0:00:00]} Kd4 {[%emt 0:00:10]} 84. Nf4 {[%emt 0:00:25]} Ke4 {[%emt 0:00:13]} 85. Ne2 {[%emt 0:01:16]} Rd8+ {[%emt 0:00:07]} 86. Kc2 {[%emt 0:00:02]} Ke3 {[%emt 0:00:47]} 87. Nc3 {[%emt 0:00:30]} Rc8 {[%emt 0:00:06]} 88. Kb3 {[%emt 0:00:45]} Kd3 {[%emt 0:00:14]} 89. Nb5 {[%emt 0:00:00]} Rc5 {[%emt 0:01:09]} 90. Kb4 {[%emt 0:00:01]} Rh5 {[%emt 0:00:00]} 91. Nd6 {[%emt 0:00:35]} Rd5 {[%emt 0:01:08]} 92. Nb5 {[%emt 0:00:45]} Rd8 {[%emt 0:00:12]} 93. Kc5 {[%emt 0:00:28]} Rc8+ {[%emt 0:00:10]} 94. Kd5 {[%emt 0:00:17]} Rh8 {[%emt 0:00:03]} 95. Nd6 {[%emt 0:01:29]} Rh5+ {[%emt 0:00:15]} 96. Ke6 {[%emt 0:00:00]} Kd4 {[%emt 0:00:11]} 97. Nf5+ {[%emt 0:00:32]} Kc5 {[%emt 0:00:30]} 98. Ke5 {[%emt 0:00:00]} Rh1 {[%emt 0:00:00]} 99. Ke4 {[%emt 0:00:00]} Rh8 {[%emt 0:00:18]} 100. Ke5 {[%emt 0:00:19]} Re8+ {[%emt 0:00:06]} 101. Kf4 {[%emt 0:00:14]} Kd5 {[%emt 0:00:13]} 102. Ne3+ {[%emt 0:00:38]} Kd4 {[%emt 0:00:30]} 103. Nf5+ {[%emt 0:00:30]} Kd3 {[%emt 0:00:30]} 104. Nd6 {[%emt 0:00:00]} Re6 {[%emt 0:00:00]} 105. Nf5 {[%emt 0:00:27]} Re4+ {[%emt 0:00:15]} 106. Kf3 {[%emt 0:00:30]} Re8 {[%emt 0:00:00]} 107. Kf4 {[%emt 0:00:00]} Re1 {[%emt 0:00:00]} 108. Ng3 {[%emt 0:00:12]} Kc4 {[%emt 0:00:41]} 109. Nf5 {[%emt 0:00:24]} Kd5 {[%emt 0:00:15]} 110. Ne3+ {[%emt 0:00:40]} Ke6 {[%emt 0:00:00]} 111. Ke4 {[%emt 0:00:19]} Rxe3+ {[%emt 0:00:02]} 112. Kxe3 {[%emt 0:00:17]} 1/2-1/2

[Event "TUR-ch Veterans 2020"]
[Site "Antalya-Belek"]
[Date "2020.01.22"]
[Round "5"]
[White "Onem, Cem"]
[Black "Ozates, Veysel"]
[Result "0-1"]
[ECO "D46"]
[WhiteElo "1805"]
[BlackElo "1617"]
[Annotator "NA"]
[PlyCount "50"]
[EventDate "2020.01.19"]
[EventCountry "TUR"]
[SourceTitle "playchess.com"]
[Source "ChessBase"]
[SourceQuality "1"]
[TimeControl "5400+30"]

1. d4 {[%emt 0:00:30]} d5 {[%emt 0:00:30]} 2. c4 {[%emt 0:00:30]} c6 {[%emt 0:00:00]} 3. e3 {[%emt 0:00:00]} Nf6 {[%emt 0:00:00]} 4. Nf3 {[%emt 0:00:00]} e6 {[%emt 0:00:30]} 5. Bd3 {[%emt 0:00:00]} dxc4 {[%emt 0:00:30]} 6. Bxc4 {[%emt 0:00:00]} Nbd7 {[%emt 0:00:30]} 7. O-O {[%emt 0:00:00]} Bd6 {[%emt 0:00:00]} 8. Nc3 {[%emt 0:01:00]} O-O {[%emt 0:01:00]} 9. e4 {[%emt 0:07:30]} b5 {[%emt 0:02:30]} 10. Bd3 {[%emt 0:08:30]} b4 {[%emt 0:07:30]} (10... e5 $11) 11. Na4 {[%emt 0:07:30]} e5 {[%emt 0:06:30]} 12. Re1 {[%emt 0:06:30]} Re8 {[%emt 0:00:30]} 13. Bg5 {[%emt 0:04:30]} h6 {[%emt 0:09:30]} 14. Bh4 {[%emt 0:06:30]} exd4 $11 {[%emt 0:06:30]} 15. Nxd4 {[%emt 0:04:30]} Qc7 {[%emt 0:07:30]} 16. Bg3 {[%emt 0:01:30]} Bxg3 {[%emt 0:00:30]} 17. hxg3 {[%emt 0:00:30]} Ne5 {[%emt 0:01:30]} 18. Nf3 {[%emt 0:21:30]} Bg4 {[%emt 0:11:30]} 19. Bf1 {[%emt 0:03:30]} Qa5 {[%emt 0:10:30]} 20. Re3 {[%emt 0:03:30]} Bh5 {[%emt 0:11:30]} 21. Qc2 {[%emt 0:05:50]} Bg6 {[%emt 0:04:22]} 22. Nxe5 {[%emt 0:00:56]} Qxe5 {[%emt 0:00:44]} 23. f3 {[%emt 0:04:24]} Qxg3 {[%emt 0:03:42]} 24. Qxc6 {[%emt 0:03:45]} Rac8 {[%emt 0:03:44]} 25. Qb5 {[%emt 0:00:50]} Ng4 {[%emt 0:01:55]} 0-1